fUSD/lending_fUSD_20260513
["ID","MTS","AMOUNT","RATE_DAILY","PERIOD"]
[422154754,1778627432000,-150.0,0.00013488,2]
[422154753,1778627432000,-150.0,0.00013488,2]
[422154755,1778627432000,-150.0,0.00013488,2]
[422154756,1778627432000,-150.0,0.00013488,2]
[422154757,1778627432000,-1692.03695789,0.000135,2]
[422154752,1778627432000,-250.23673418,0.00013488,2]
[422154758,1778627432000,-5706.98173295,0.00013548,2]
[422154759,1778627432000,-150.0,0.00013553,2]
[422154771,1778627432000,-150.0,0.00013987,2]
[422154769,1778627432000,-150.0,0.00013879,2]
[422154766,1778627432000,-150.0,0.00013787,2]
[422154768,1778627432000,-150.0,0.00013862,2]
[422154767,1778627432000,-150.0,0.00013813,2]
[422154748,1778627432000,-10882.63455018,0.00013339,2]
[422154763,1778627432000,-150.0,0.00013737,2]
[422154762,1778627432000,-150.0,0.00013683,2]
[422154760,1778627432000,-150.0,0.00013618,2]
[422154764,1778627432000,-150.0,0.00013737,2]
[422154761,1778627432000,-150.0,0.00013675,2]
[422154765,1778627432000,-150.0,0.00013748,2]
[422154802,1778627433000,-150.0,0.00014791,2]
[422154806,1778627433000,-2354.53874077,0.000149,2]
[422154803,1778627433000,-150.0,0.00014799,2]
[422154805,1778627433000,-77775.2936,0.000149,2]
[422154804,1778627433000,-150.0,0.00014856,2]
[422154807,1778627433000,-380.0,0.00011718,2]
[422154837,1778627443000,-545.29238926,0.00011718,2]
[422154828,1778627443000,-120.0,0.00011718,2]
[422154829,1778627443000,-378.31145007,0.00011718,2]
[422154830,1778627443000,-121.68854993,0.00011718,2]
[422154832,1778627443000,-111.88049292,0.00011718,2]
[422154831,1778627443000,-268.35483089,0.00011718,2]
[422154833,1778627443000,-388.11950708,0.00011718,2]
[422154834,1778627443000,-270.74271456,0.00011718,2]
[422154835,1778627443000,-500.0,0.00011718,2]
[422154836,1778627443000,-244.97744706,0.00011718,2]
[422154840,1778627443000,-91.27441336,0.00011718,2]
[422154839,1778627443000,-408.72558664,0.00011718,2]
[422154841,1778627443000,-500.0,0.00011718,2]
[422154844,1778627443000,-640.4385698,0.00014039,2]
[422154843,1778627443000,-368.37891176,0.00011718,2]
[422154842,1778627443000,-131.62108824,0.00011718,2]
[422154838,1778627443000,-500.0,0.00011718,2]
[422154857,1778627445000,-413.33258518,0.0001492,2]
[422154860,1778627445000,-150.0,0.00014921,2]
[422154859,1778627445000,-5706.98173295,0.0001492,2]
[422154856,1778627445000,-153.49400757,0.000149,2]
[422154852,1778627445000,-1692.03695789,0.00014578,2]
[422154855,1778627445000,-153.49400757,0.000149,2]
[422154853,1778627445000,-145.46125923,0.000149,2]
[422154851,1778627445000,-1051.59838809,0.00014039,2]
[422154854,1778627445000,-5000.0,0.000149,2]
[422154861,1778627445000,-243.7778175,0.00014986,2]
[422154858,1778627445000,-177.80498273,0.0001492,2]
[422154863,1778627445000,-202.90549931,0.00014986,2]
[422154865,1778627445000,-150.0,0.00014986,2]
[422154866,1778627445000,-394.07818401,0.0001499,2]
[422154867,1778627445000,-394.07818401,0.0001499,2]
[422154862,1778627445000,-264.13566986,0.00014986,2]
[422154868,1778627445000,-394.07818401,0.0001499,2]
[422154870,1778627445000,-184.899,0.00014998,2]
[422154873,1778627445000,-300.0,0.00014999,2]
[422154871,1778627445000,-1008.81748156,0.00014999,5]
[422154869,1778627445000,-1435.488,0.00014998,2]
[422154872,1778627445000,-300.0,0.00014999,2]
[422154864,1778627445000,-264.0930522,0.00014986,2]
[422154874,1778627446000,-666.0,0.00014999,2]
[422154877,1778627446000,-1000.0,0.00015,2]
[422154875,1778627446000,-300.0,0.00014999,2]
[422154876,1778627446000,-1184913.96579194,0.00015,2]
[422154880,1778627527000,200.0,0.00041291,120]
[422154890,1778627758000,500.0,0.00041292,120]
[422154896,1778627858000,1017.875205,0.00026196,120]
[422154898,1778627953000,161.738644,0.0002499,120]
[422154900,1778627976000,500.0,0.00041274,120]
[422154899,1778627976000,500.0,0.00041274,120]
[422154901,1778627977000,500.0,0.00041274,120]
[422154904,1778627977000,500.0,0.00041274,120]
[422154903,1778627977000,500.0,0.00041274,120]
[422154902,1778627977000,500.0,0.00041274,120]
[422154909,1778627978000,500.0,0.00041274,120]
[422154908,1778627978000,500.0,0.00041274,120]
[422154907,1778627978000,500.0,0.00041274,120]
[422154906,1778627978000,500.0,0.00041274,120]
[422154905,1778627978000,500.0,0.00041274,120]
[422154913,1778627979000,500.0,0.00041274,120]
[422154912,1778627979000,500.0,0.00041274,120]
[422154911,1778627979000,500.0,0.00041274,120]
[422154910,1778627979000,500.0,0.00041274,120]
[422154914,1778627980000,215.14897224,0.00041274,120]
[422154915,1778628120000,282.2967558,0.0001,2]
[422154916,1778628238000,593.041697,0.00024619,120]
[422154917,1778628279000,263.6,0.00027397,120]
[422154919,1778628279000,163.86,0.00023,120]
[422154918,1778628279000,210.13,0.000271,120]
[422154920,1778628390000,-226.15146954,0.00010599,2]
[422154939,1778628631000,-657.4,0.00013445,2]
[422154942,1778628631000,-190.01670168,0.00013669,2]
[422154934,1778628631000,-209.649419,0.00012801,2]
[422154937,1778628631000,-1680.0,0.00012889,2]
[422154938,1778628631000,-197.61,0.00013252,2]
[422154936,1778628631000,-420.0,0.00012866,2]
[422154944,1778628631000,-500.0,0.00013698,2]
[422154935,1778628631000,-300.0,0.00012866,2]
[422154933,1778628631000,-575.90720478,0.00011718,2]
[422154924,1778628631000,-201.15923283,0.00011618,2]
[422154927,1778628631000,-300.0,0.00011717,2]
[422154929,1778628631000,-1200.0,0.00011717,2]
[422154928,1778628631000,-300.0,0.00011717,2]
[422154931,1778628631000,-769.92911676,0.00011718,2]
[422154930,1778628631000,-300.0,0.00011717,2]
[422154925,1778628631000,-208.08566668,0.00011659,2]
[422154926,1778628631000,-300.92605614,0.00011659,2]
[422154923,1778628631000,-163.34,0.00010599,2]
[422154922,1778628631000,-68.31503046,0.00010599,2]
[422154932,1778628631000,-1134.60857358,0.00011718,2]
[422154943,1778628631000,-500.0,0.00013698,2]
[422154941,1778628631000,-166.4,0.0001347,2]
[422154946,1778628631000,-166.66,0.00013699,2]
[422154940,1778628631000,-2511.76,0.00013457,2]
[422154973,1778628631000,-201.15923283,0.00014799,2]
[422154969,1778628631000,-1600.33,0.00014795,2]
[422154971,1778628631000,-350.90802154,0.00014795,2]
[422154963,1778628631000,-176.1,0.00014531,2]
[422154966,1778628631000,-587.43997846,0.00014795,2]
[422154964,1778628631000,-166.66,0.00014739,2]
[422154961,1778628631000,-166.66,0.00014531,2]
[422154951,1778628631000,-2840.0,0.00013995,2]
[422154952,1778628631000,-250.0,0.00014,2]
[422154959,1778628631000,-166.66,0.00014323,2]
[422154957,1778628631000,-1735.0,0.00014178,2]
[422154949,1778628631000,-166.66,0.00013907,2]
[422154955,1778628631000,-150.0,0.00014128,2]
[422154948,1778628631000,-282.76,0.00013873,2]
[422154950,1778628631000,-190.01670168,0.00013925,2]
[422154945,1778628631000,-3395.7,0.00013699,2]
[422154947,1778628631000,-3252.48,0.00013738,2]
[422154956,1778628631000,-544.0,0.00014128,2]
[422154953,1778628631000,-166.66,0.00014115,2]
[422154954,1778628631000,-166.93,0.0001412,2]
[422155077,1778628632000,-500.0,0.00014899,2]
[422155071,1778628632000,-500.0,0.00014899,2]
[422155059,1778628632000,-500.0,0.00014899,2]
[422155057,1778628632000,-500.0,0.00014899,2]
[422155055,1778628632000,-617.33085502,0.00014899,2]
[422155045,1778628632000,-500.0,0.00014899,2]
[422155049,1778628632000,-500.0,0.00014899,2]
[422155051,1778628632000,-500.0,0.00014899,2]
[422155053,1778628632000,-500.0,0.00014899,2]
[422155047,1778628632000,-500.0,0.00014899,2]
[422155063,1778628632000,-500.0,0.00014899,2]
[422155043,1778628632000,-606.83,0.00014899,2]
[422155079,1778628632000,-500.0,0.00014899,2]
[422155099,1778628632000,-500.0,0.00014899,2]
[422155073,1778628632000,-500.0,0.00014899,2]
[422155075,1778628632000,-500.0,0.00014899,2]
[422155065,1778628632000,-500.0,0.00014899,2]
[422155067,1778628632000,-500.0,0.00014899,2]
[422155061,1778628632000,-500.0,0.00014899,2]
[422155085,1778628632000,-500.0,0.00014899,2]
[422155083,1778628632000,-500.0,0.00014899,2]
[422155081,1778628632000,-500.0,0.00014899,2]
[422155088,1778628632000,-500.0,0.00014899,2]
[422155041,1778628632000,-606.83,0.00014899,2]
[422155105,1778628632000,-174.50419108,0.00014899,2]
[422155089,1778628632000,-158.19716862,0.00014899,2]
[422155104,1778628632000,-500.0,0.00014899,2]
[422155094,1778628632000,-500.0,0.00014899,2]
[422155069,1778628632000,-508.180674,0.00014899,2]
[422155039,1778628632000,-606.83,0.00014899,2]
[422155017,1778628632000,-357.57050578,0.00014881,2]
[422155035,1778628632000,-606.83,0.00014899,2]
[422155091,1778628632000,-500.0,0.00014899,2]
[422154977,1778628632000,-222.07527634,0.000148,2]
[422154979,1778628632000,-1593.23136825,0.000148,2]
[422154975,1778628632000,-1880.1178,0.000148,2]
[422154982,1778628632000,-5204.86723175,0.000148,2]
[422154988,1778628632000,-338.40739165,0.0001481,2]
[422154986,1778628632000,-2041.91853177,0.000148,2]
[422154989,1778628632000,-357.57050585,0.0001481,2]
[422154992,1778628632000,-338.40739157,0.00014821,2]
[422154993,1778628632000,-222.07527631,0.00014822,2]
[422154999,1778628632000,-357.57050578,0.00014839,2]
[422155002,1778628632000,-338.40739157,0.00014843,2]
[422154998,1778628632000,-338.40739157,0.00014832,2]
[422154996,1778628632000,-357.57050578,0.00014824,2]
[422154984,1778628632000,-5000.0,0.000148,2]
[422155008,1778628632000,-338.40739157,0.00014854,2]
[422155003,1778628632000,-222.07527631,0.00014845,2]
[422155005,1778628632000,-357.57050578,0.00014853,2]
[422155012,1778628632000,-222.07527631,0.00014867,2]
[422155013,1778628632000,-357.57050578,0.00014867,2]
[422155015,1778628632000,-338.40739157,0.00014877,2]
[422155019,1778628632000,-338.40739157,0.00014888,2]
[422155010,1778628632000,-338.40739157,0.00014866,2]
[422155021,1778628632000,-222.07527631,0.00014889,2]
[422155027,1778628632000,-500.0,0.00014898,2]
[422155031,1778628632000,-338.40739157,0.00014899,2]
[422155025,1778628632000,-1002.01916522,0.00014898,2]
[422155023,1778628632000,-357.57050578,0.00014896,2]
[422155033,1778628632000,-606.83,0.00014899,2]
[422155037,1778628632000,-606.83,0.00014899,2]
[422155101,1778628632000,-500.0,0.00014899,2]
[422155029,1778628632000,-1000.0,0.00014898,2]
[422155107,1778628632000,-500.0,0.00014899,2]
[422155144,1778628632000,-500.0,0.00014899,2]
[422155155,1778628632000,-500.0,0.00014899,2]
[422155145,1778628632000,-500.0,0.00014899,2]
[422155154,1778628632000,-500.0,0.00014899,2]
[422155147,1778628632000,-500.0,0.00014899,2]
[422155148,1778628632000,-500.0,0.00014899,2]
[422155172,1778628632000,-275.1905511,0.00014899,2]
[422155150,1778628632000,-500.0,0.00014899,2]
[422155149,1778628632000,-500.0,0.00014899,2]
[422155151,1778628632000,-500.0,0.00014899,2]
[422155152,1778628632000,-500.0,0.00014899,2]
[422155158,1778628632000,-500.0,0.00014899,2]
[422155159,1778628632000,-500.0,0.00014899,2]
[422155156,1778628632000,-500.0,0.00014899,2]
[422155168,1778628632000,-500.0,0.00014899,2]
[422155163,1778628632000,-500.0,0.00014899,2]
[422155160,1778628632000,-500.0,0.00014899,2]
[422155166,1778628632000,-500.0,0.00014899,2]
[422155162,1778628632000,-500.0,0.00014899,2]
[422155157,1778628632000,-500.0,0.00014899,2]
[422155161,1778628632000,-201.98514897,0.00014899,2]
[422155165,1778628632000,-500.0,0.00014899,2]
[422155164,1778628632000,-500.0,0.00014899,2]
[422155170,1778628632000,-283.77726333,0.00014899,2]
[422155174,1778628632000,-107012.446903,0.000149,2]
[422155169,1778628632000,-500.0,0.00014899,2]
[422155173,1778628632000,-2000.0,0.000149,2]
[422155171,1778628632000,-500.0,0.00014899,2]
[422155098,1778628632000,-500.0,0.00014899,2]
[422155146,1778628632000,-500.0,0.00014899,2]
[422155153,1778628632000,-500.0,0.00014899,2]
[422155167,1778628632000,-500.0,0.00014899,2]
[422155142,1778628632000,-500.0,0.00014899,2]
[422155108,1778628632000,-500.0,0.00014899,2]
[422155110,1778628632000,-500.0,0.00014899,2]
[422155112,1778628632000,-500.0,0.00014899,2]
[422155114,1778628632000,-500.0,0.00014899,2]
[422155116,1778628632000,-500.0,0.00014899,2]
[422155118,1778628632000,-356.17682839,0.00014899,2]
[422155124,1778628632000,-500.0,0.00014899,2]
[422155128,1778628632000,-500.0,0.00014899,2]
[422155122,1778628632000,-500.0,0.00014899,2]
[422155123,1778628632000,-500.0,0.00014899,2]
[422155096,1778628632000,-500.0,0.00014899,2]
[422155126,1778628632000,-500.0,0.00014899,2]
[422155121,1778628632000,-500.0,0.00014899,2]
[422155125,1778628632000,-500.0,0.00014899,2]
[422155119,1778628632000,-500.0,0.00014899,2]
[422155120,1778628632000,-500.0,0.00014899,2]
[422155137,1778628632000,-500.0,0.00014899,2]
[422155139,1778628632000,-500.0,0.00014899,2]
[422155135,1778628632000,-500.0,0.00014899,2]
[422155136,1778628632000,-500.0,0.00014899,2]
[422155127,1778628632000,-500.0,0.00014899,2]
[422155134,1778628632000,-500.0,0.00014899,2]
[422155129,1778628632000,-500.0,0.00014899,2]
[422155138,1778628632000,-500.0,0.00014899,2]
[422155141,1778628632000,-500.0,0.00014899,2]
[422155133,1778628632000,-500.0,0.00014899,2]
[422155132,1778628632000,-500.0,0.00014899,2]
[422155140,1778628632000,-510.73849383,0.00014899,2]
[422155130,1778628632000,-500.0,0.00014899,2]
[422155131,1778628632000,-500.0,0.00014899,2]
[422155143,1778628632000,-500.0,0.00014899,2]
[422155180,1778628633000,-5541.76011672,0.000149,2]
[422155177,1778628633000,-8122.53589989,0.000149,2]
[422155175,1778628633000,-17292.49188596,0.000149,2]
[422155176,1778628633000,-74018.8545824,0.000149,2]
[422155181,1778628633000,-1668.97568377,0.000149,2]
[422155178,1778628633000,-906.78256907,0.000149,2]
[422155179,1778628633000,-1405.13503512,0.000149,2]
[422155184,1778628633000,-21918.62055404,0.000149,2]
[422155183,1778628633000,-1304.06328209,0.000149,2]
[422155187,1778628633000,-400.10494811,0.000149,2]
[422155182,1778628633000,-500.0,0.00014899,2]
[422155186,1778628633000,-500.0,0.00014899,2]
[422155185,1778628633000,-1060.14397087,0.000149,2]
[422155197,1778628637000,-329.4706991,0.000149,2]
[422155194,1778628637000,-500.0,0.00014899,2]
[422155195,1778628637000,-500.0,0.00014899,2]
[422155193,1778628637000,-500.0,0.00014899,2]
[422155191,1778628637000,-321.47746763,0.00014899,2]
[422155192,1778628637000,-500.0,0.00014899,2]
[422155190,1778628637000,-500.0,0.00014899,2]
[422155189,1778628637000,-215.85566732,0.00014899,2]
[422155188,1778628637000,-284.14433268,0.00014899,2]
[422155196,1778628637000,-2053.55280176,0.000149,2]
[422155198,1778628638000,-1043.35,0.000149,2]
[422155211,1778628640000,-1440.53823445,0.000149,2]
[422155212,1778628640000,-474.36972292,0.000149,2]
[422155213,1778628640000,-414.751446,0.000149,2]
[422155256,1778628648000,-715.37745727,0.000148,2]
[422155278,1778629000000,161.09045,0.00026196,120]
[422155280,1778629014000,294.956823,0.00026736,120]
[422155282,1778629028000,154.43,7.155e-05,2]
[422155284,1778629029000,154.43,9.447e-05,2]
[422155283,1778629029000,154.43,8.301e-05,2]
[422155288,1778629125000,252.865908,0.0002499,120]
[422155289,1778629343000,500.0,0.00041282,120]
[422155290,1778629343000,505.60721867,0.00041282,120]
[422155303,1778629831000,-500.0,0.00013435,2]
[422155299,1778629831000,-154.43,0.00011738,2]
[422155298,1778629831000,-154.43,0.00010592,2]
[422155300,1778629831000,-154.43,0.00012884,2]
[422155302,1778629831000,-484.63959368,0.00013415,2]
[422155301,1778629831000,-2168.61040632,0.00013415,2]
[422155304,1778629831000,-515.72040632,0.00013455,2]
[422155313,1778629831000,-200.0,0.00013744,2]
[422155305,1778629831000,-477.49959368,0.00013455,2]
[422155308,1778629831000,-526.80488787,0.0001356,2]
[422155307,1778629831000,-618.98040632,0.0001356,2]
[422155306,1778629831000,-150.0,0.00013521,2]
[422155310,1778629831000,-200.0,0.00013619,2]
[422155309,1778629831000,-706.63470581,0.0001356,2]
[422155312,1778629831000,-2000.0,0.00013739,2]
[422155311,1778629831000,-150.0,0.00013665,2]
[422155314,1778629832000,-2653.25,0.0001375,2]
[422155315,1778629832000,-1255.88,0.00013778,2]
[422155317,1778629832000,-184.03,0.00013832,2]
[422155316,1778629832000,-500.0,0.00013784,2]
[422155319,1778629832000,-165.17,0.00013956,2]
[422155324,1778629832000,-847826.5951048,0.00014597,2]
[422155325,1778629832000,-172696.5815026,0.00014597,2]
[422155318,1778629832000,-1611.97,0.0001385,2]
[422155326,1778629832000,-134105.35675864,0.00014597,2]
[422155320,1778629832000,-154.43,0.0001403,2]
[422155321,1778629832000,-2653.25,0.00014086,2]
[422155322,1778629832000,-500.0,0.00014219,2]
[422155328,1778629832000,-189944.39768631,0.00014597,2]
[422155330,1778629832000,-1254.41808677,0.00014597,2]
[422155333,1778629832000,-400.19285262,0.00014597,2]
[422155323,1778629832000,-2653.25,0.00014421,2]
[422155456,1778629838000,-32052.07979357,0.00014597,2]
[422155458,1778629838000,-2257.08759166,0.00014597,2]
[422155457,1778629838000,-1466.38808259,0.00014597,2]
[422155460,1778629838000,-304.70463,0.00014597,2]
[422155459,1778629838000,-289.11111019,0.00014597,2]
[422155470,1778629841000,-953.06151193,0.00014597,2]
[422155469,1778629841000,-781.06101906,0.00014597,2]
[422155467,1778629841000,-293.43557286,0.00014597,2]
[422155468,1778629841000,-543.87459507,0.00014597,2]
[422155466,1778629841000,-759.73222581,0.00014597,2]
[422155479,1778629843000,-12746.15376665,0.00014597,2]
[422155480,1778629846000,-6340.71709089,0.00014597,2]
[422155481,1778629846000,-1901.58139033,0.00014597,2]
[422155482,1778629846000,-5416.23102283,0.00014597,2]
[422155483,1778629872000,811.0,0.00041282,120]
[422155484,1778629919000,2180.654,0.00027397,120]
[422155486,1778629949000,161.63,9.332e-05,2]
[422155485,1778629949000,161.63,7.068e-05,2]
[422155498,1778630817000,-198.915949,0.00010439,2]
[422155499,1778630817000,-5.41895803,0.00010492,2]
[422155545,1778631032000,-954.96,0.00013791,2]
[422155542,1778631032000,-200.0,0.00013699,2]
[422155543,1778631032000,-1000.0,0.00013699,2]
[422155541,1778631032000,-172.13,0.00013699,2]
[422155537,1778631032000,-500.0,0.00013475,2]
[422155540,1778631032000,-1447.21,0.00013699,2]
[422155533,1778631032000,-150.0,0.00013249,2]
[422155544,1778631032000,-177.53,0.00013728,2]
[422155534,1778631032000,-4120.02,0.00013294,2]
[422155538,1778631032000,-165.07,0.00013572,2]
[422155539,1778631032000,-169.96,0.00013613,2]
[422155547,1778631032000,-1422.4633939,0.00013889,2]
[422155552,1778631032000,-500.0,0.00013989,2]
[422155548,1778631032000,-172.13,0.00013927,2]
[422155550,1778631032000,-500.0,0.00013989,2]
[422155536,1778631032000,-954.96,0.00013463,2]
[422155551,1778631032000,-500.0,0.00013989,2]
[422155546,1778631032000,-161.63,0.00013859,2]
[422155559,1778631032000,-500.0,0.00013989,2]
[422155553,1778631032000,-500.0,0.00013989,2]
[422155556,1778631032000,-500.0,0.00013989,2]
[422155555,1778631032000,-500.0,0.00013989,2]
[422155558,1778631032000,-500.0,0.00013989,2]
[422155557,1778631032000,-500.0,0.00013989,2]
[422155554,1778631032000,-500.0,0.00013989,2]
[422155549,1778631032000,-500.0,0.00013989,2]
[422155535,1778631032000,-200.0,0.00013334,2]
[422155510,1778631032000,-664.38554217,0.00010699,2]
[422155529,1778631032000,-500.0,0.00013068,2]
[422155561,1778631032000,-368.07020779,0.00013989,2]
[422155505,1778631032000,-200.11454197,0.00010492,2]
[422155506,1778631032000,-292.72673506,0.00010509,2]
[422155508,1778631032000,-97.50021361,0.00010699,2]
[422155509,1778631032000,-52.49978639,0.00010699,2]
[422155507,1778631032000,-635.74202032,0.00010526,2]
[422155511,1778631032000,-440.0,0.00010699,2]
[422155514,1778631032000,-277.0048967,0.00010699,2]
[422155513,1778631032000,-300.0,0.00010699,2]
[422155512,1778631032000,-95.61445783,0.00010699,2]
[422155515,1778631032000,-22.9951033,0.00010699,2]
[422155516,1778631032000,-5488.03818884,0.000107,2]
[422155528,1778631032000,-3022.79,0.00013002,2]
[422155520,1778631032000,-250.0,0.00011542,2]
[422155517,1778631032000,-19689.57241436,0.000107,2]
[422155518,1778631032000,-168799.72113217,0.000107,2]
[422155522,1778631032000,-153.0,0.00011737,2]
[422155524,1778631032000,-2008.88,0.00012615,2]
[422155523,1778631032000,-1852.42,0.00012542,2]
[422155525,1778631032000,-150.21,0.00012745,2]
[422155527,1778631032000,-2000.0,0.00012943,2]
[422155526,1778631032000,-165.17,0.00012899,2]
[422155521,1778631032000,-161.63,0.00011596,2]
[422155532,1778631032000,-6786.32,0.00013199,2]
[422155531,1778631032000,-10281.99,0.00013199,2]
[422155530,1778631032000,-954.96,0.00013135,2]
[422155519,1778631032000,-165.63,0.00010859,2]
[422155560,1778631032000,-500.0,0.00013989,2]
[422155567,1778631032000,-247.26527247,0.00013989,2]
[422155562,1778631032000,-637.32700638,0.00013989,2]
[422155591,1778631032000,-1823.00014189,0.00013989,2]
[422155596,1778631032000,-1823.00014189,0.00013989,2]
[422155595,1778631032000,-1823.00014189,0.00013989,2]
[422155597,1778631032000,-1823.00014189,0.00013989,2]
[422155599,1778631032000,-1823.00014189,0.00013989,2]
[422155598,1778631032000,-1823.00014189,0.00013989,2]
[422155600,1778631032000,-1823.00014189,0.00013989,2]
[422155601,1778631032000,-1823.00014189,0.00013989,2]
[422155603,1778631032000,-1823.00014189,0.00013989,2]
[422155602,1778631032000,-1823.00014189,0.00013989,2]
[422155604,1778631032000,-1823.00014189,0.00013989,2]
[422155606,1778631032000,-1823.00014189,0.00013989,2]
[422155594,1778631032000,-1823.00014189,0.00013989,2]
[422155605,1778631032000,-1823.00014189,0.00013989,2]
[422155607,1778631032000,-1823.00014189,0.00013989,2]
[422155611,1778631032000,-1823.00014189,0.00013989,2]
[422155610,1778631032000,-1823.00014189,0.00013989,2]
[422155609,1778631032000,-1823.00014189,0.00013989,2]
[422155612,1778631032000,-1823.00014189,0.00013989,2]
[422155613,1778631032000,-1823.00014189,0.00013989,2]
[422155614,1778631032000,-1823.00014189,0.00013989,2]
[422155616,1778631032000,-1823.00014189,0.00013989,2]
[422155618,1778631032000,-1823.00014189,0.00013989,2]
[422155617,1778631032000,-1823.00014189,0.00013989,2]
[422155620,1778631032000,-1823.00014189,0.00013989,2]
[422155563,1778631032000,-500.0,0.00013989,2]
[422155608,1778631032000,-1823.00014189,0.00013989,2]
[422155592,1778631032000,-1823.00014189,0.00013989,2]
[422155615,1778631032000,-1823.00014189,0.00013989,2]
[422155588,1778631032000,-1823.00014189,0.00013989,2]
[422155593,1778631032000,-1823.00014189,0.00013989,2]
[422155565,1778631032000,-500.0,0.00013989,2]
[422155564,1778631032000,-500.0,0.00013989,2]
[422155569,1778631032000,-500.0,0.00013989,2]
[422155619,1778631032000,-1823.00014189,0.00013989,2]
[422155566,1778631032000,-500.0,0.00013989,2]
[422155573,1778631032000,-500.0,0.00013989,2]
[422155575,1778631032000,-500.0,0.00013989,2]
[422155574,1778631032000,-500.0,0.00013989,2]
[422155571,1778631032000,-500.0,0.00013989,2]
[422155576,1778631032000,-500.0,0.00013989,2]
[422155570,1778631032000,-500.0,0.00013989,2]
[422155572,1778631032000,-500.0,0.00013989,2]
[422155568,1778631032000,-500.0,0.00013989,2]
[422155579,1778631032000,-500.0,0.00013989,2]
[422155577,1778631032000,-500.0,0.00013989,2]
[422155589,1778631032000,-1823.00014189,0.00013989,2]
[422155587,1778631032000,-500.0,0.00013989,2]
[422155584,1778631032000,-500.0,0.00013989,2]
[422155585,1778631032000,-500.0,0.00013989,2]
[422155583,1778631032000,-500.0,0.00013989,2]
[422155586,1778631032000,-500.0,0.00013989,2]
[422155582,1778631032000,-500.0,0.00013989,2]
[422155578,1778631032000,-500.0,0.00013989,2]
[422155580,1778631032000,-500.0,0.00013989,2]
[422155581,1778631032000,-500.0,0.00013989,2]
[422155590,1778631032000,-1823.00014189,0.00013989,2]
[422155649,1778631033000,-1823.00014187,0.00013989,2]
[422155654,1778631033000,-1422.46339383,0.00014033,2]
[422155646,1778631033000,-1823.00014188,0.00013989,2]
[422155652,1778631033000,-51910.45906682,0.0001399,2]
[422155648,1778631033000,-1823.00014187,0.00013989,2]
[422155647,1778631033000,-1823.00014187,0.00013989,2]
[422155650,1778631033000,-1823.00014187,0.00013989,2]
[422155651,1778631033000,-500.0,0.00013989,2]
[422155653,1778631033000,-250.0,0.00014,2]
[422155659,1778631033000,-500.0,0.00014263,2]
[422155657,1778631033000,-172.13,0.00014155,2]
[422155655,1778631033000,-508.0,0.0001411,2]
[422155658,1778631033000,-1422.46339383,0.00014178,2]
[422155660,1778631033000,-3107.09184701,0.00014284,2]
[422155665,1778631033000,-500.0,0.00014383,2]
[422155662,1778631033000,-700.0,0.00014342,2]
[422155661,1778631033000,-1422.46339383,0.00014322,2]
[422155645,1778631033000,-1823.00014188,0.00013989,2]
[422155664,1778631033000,-313.65329756,0.00014383,2]
[422155656,1778631033000,-954.96,0.0001412,2]
[422155644,1778631033000,-1823.00014188,0.00013989,2]
[422155628,1778631033000,-1823.00014188,0.00013989,2]
[422155641,1778631033000,-1823.00014188,0.00013989,2]
[422155663,1778631033000,-3107.09184697,0.00014352,2]
[422155626,1778631033000,-1823.00014188,0.00013989,2]
[422155621,1778631033000,-1823.00014189,0.00013989,2]
[422155622,1778631033000,-1823.00014188,0.00013989,2]